bitfinex/quotes_SOLUSD_20260309
["timestamp","ask_amount","ask_price","bid_price","bid_amount"]
[1773039827493,12.06287168,82.899,82.871,3.44015967]
[1773039827786,12.06051117,82.916,82.881,3.44015967]
[1773039827988,11.97825248,82.9,82.873,3.44015967]
[1773039828194,2.08246396,82.899,82.873,3.44015967]
[1773039828395,11.97825248,82.9,82.873,3.44015967]
[1773039828998,3.53764402,82.889,82.85,11.97825248]
[1773039829379,11.97825248,82.88,82.85,11.97825248]
[1773039829584,11.97825248,82.88,82.84,11.97825248]
[1773039829999,12.06578264,82.879,82.85,11.97825248]
[1773039830200,3.53764402,82.878,82.818,3.69383402]
[1773039830383,11.97825248,82.86,82.82,11.97825248]
[1773039830583,3.53764402,82.859,82.82,11.97825248]
[1773039831100,3.53764402,82.839,82.804,3.44015967]
[1773039831279,3.53764402,82.839,82.805,3.44015967]
[1773039831477,11.97825248,82.83,82.805,3.44015967]
[1773039831800,3.53764402,82.832,82.805,3.44015967]
[1773039831997,12.07277468,82.831,82.805,3.44015967]
[1773039832393,3.53764402,82.83,82.805,3.44015967]
[1773039832789,3.53764402,82.83,82.802,3.44015967]
[1773039833900,15.5158965,82.83,82.802,3.44015967]
[1773039834099,3.53764402,82.829,82.803,12.07685711]
[1773039834298,12.07277468,82.831,82.804,3.44015967]
[1773039834996,3.53764402,82.836,82.804,3.44015967]
[1773039835196,12.07199718,82.837,82.804,3.44015967]
[1773039835600,15.6096412,82.837,82.804,3.44015967]
[1773039836191,3.53764402,82.834,82.804,3.44015967]
[1773039836499,11.97825248,82.83,82.804,3.44015967]
[1773039836708,12.0721917,82.835,82.804,3.44015967]
[1773039836709,12.0721917,82.835,82.805,3.44015967]
[1773039837002,11.97825248,82.86,82.821,3.44015967]
[1773039837198,12.06825806,82.862,82.831,3.44015967]
[1773039837399,3.53764402,82.859,82.831,3.44015967]
[1773039837615,3.53764402,82.839,82.811,3.44015967]
[1773039838298,3.53764402,82.839,82.812,3.44015967]
[1773039839185,12.0717545,82.838,82.812,3.44015967]
[1773039839397,12.0717545,82.838,82.813,3.44015967]
[1773039839612,3.53764402,82.839,82.813,3.44015967]
[1773039839818,15.60929098,82.839,82.813,3.44015967]
[1773039840315,3.53764402,82.839,82.815,3.44015967]
[1773039840806,12.06941567,82.855,82.821,3.44015967]
[1773039841309,64.80764039,82.88,82.814,42.26338541]
[1773039841310,3.53764402,82.879,82.841,3.44015967]
[1773039841798,11.98847408,82.87,82.831,3.44015967]
[1773039842104,48.23198386,82.933,82.815,3.44015967]
[1773039842105,3.53764402,82.849,82.815,3.44015967]
[1773039842304,3.69383402,82.89,82.806,3.44015967]
[1773039842305,11.98847408,82.83,82.806,3.44015967]
[1773039842498,11.98847408,82.83,82.73,36.25596712]
[1773039842499,3.53764402,82.819,82.789,3.44015967]
[1773039842702,12.0717545,82.838,82.78,0.1]
[1773039842703,11.98847408,82.8,82.78,0.1]
[1773039843007,15.5261181,82.8,82.78,0.1]
[1773039843390,15.5261181,82.8,82.741,0.2583652]
[1773039843391,3.74036286,82.789,82.741,0.2583652]
[1773039843601,3.74036286,82.769,82.741,12.34418855]
[1773039843789,3.74036286,82.769,82.741,0.2583652]
[1773039843995,3.74036286,82.769,82.741,3.9577756]
[1773039844198,11.98847408,82.77,82.741,3.9577756]
[1773039844396,11.98847408,82.77,82.742,3.6994104]
[1773039844602,11.98847408,82.79,82.751,3.6994104]
[1773039845013,15.72883694,82.79,82.751,3.6994104]
[1773039845220,11.98847408,82.79,82.751,3.6994104]
[1773039845795,11.98847408,82.81,82.771,3.6994104]
[1773039846011,15.81576165,82.813,82.771,3.6994104]
[1773039846306,3.74036286,82.808,82.773,3.6994104]
[1773039846504,3.74036286,82.799,82.77,11.98847408]
[1773039846892,15.08352124,82.809,82.771,3.6994104]
[1773039847099,12.07522851,82.815,82.781,3.6994104]
[1773039847412,11.98847408,82.84,82.801,3.6994104]
[1773039847600,15.72883694,82.84,82.801,3.6994104]
[1773039848500,15.72883694,82.84,82.765,90.61801485]
[1773039848501,12.07160878,82.839,82.803,3.6994104]
[1773039848714,15.72883694,82.85,82.811,3.6994104]
[1773039848918,11.98847408,82.85,82.821,3.6994104]
[1773039849221,12.06884066,82.858,82.821,3.6994104]
[1773039849916,12.06884066,82.858,82.82,11.98847408]
[1773039849917,3.82416421,82.839,82.803,3.76344765]
[1773039850699,11.98847408,82.83,82.803,3.76344765]
[1773039850898,11.98847408,82.83,82.763,3.69383402]
[1773039850899,3.82416421,82.829,82.794,3.76344765]
[1773039851503,3.82416421,82.829,82.8,11.98847408]
[1773039851704,3.82416421,82.829,82.794,3.76344765]
[1773039852109,3.82416421,82.829,82.795,12.07802403]
[1773039852312,3.82416421,82.829,82.795,15.84147168]
[1773039852515,11.98847408,82.83,82.801,3.76344765]
[1773039852815,3.82416421,82.828,82.801,3.76344765]
[1773039853118,3.82416421,82.828,82.792,3.76344765]
[1773039854008,15.81263829,82.82,82.792,3.76344765]
[1773039854211,3.82416421,82.828,82.792,3.76344765]
[1773039854514,11.98847408,82.83,82.8,11.98847408]
[1773039854697,11.98847408,82.84,82.801,3.76344765]
[1773039854902,3.82416421,82.829,82.802,12.07700297]
[1773039855113,3.82416421,82.829,82.802,15.84045062]
[1773039855313,3.82416421,82.848,82.811,3.76344765]
[1773039855515,11.98847408,82.83,82.802,12.07700297]
[1773039855817,3.82416421,82.839,82.803,3.76344765]
[1773039856014,11.98847408,82.84,82.811,3.76344765]
[1773039856602,12.07095953,82.844,82.811,3.76344765]
[1773039856805,15.8944514,82.849,82.811,3.76344765]
[1773039857000,11.98847408,82.84,82.813,3.76344765]
[1773039857417,3.82416421,82.839,82.813,3.76344765]
[1773039858809,3.82416421,82.839,82.779,60.40138921]
[1773039858810,3.82416421,82.819,82.76,11.98847408]
[1773039859015,11.98847408,82.8,82.763,3.76344765]
[1773039860430,11.98847408,82.79,82.763,3.76344765]
[1773039860925,24.06725889,82.79,82.764,12.08254796]
[1773039861122,24.06725889,82.79,82.764,15.84599561]
[1773039861323,24.06725889,82.79,82.764,3.76344765]
[1773039862816,11.98847408,82.79,82.764,3.76344765]
[1773039864216,11.98847408,82.78,82.764,3.76344765]
[1773039864522,11.98847408,82.79,82.766,3.76344765]
[1773039865233,12.07787815,82.796,82.768,3.76344765]
[1773039865531,11.98847408,82.8,82.768,3.76344765]
[1773039865714,11.98847408,82.79,82.768,3.76344765]
[1773039865916,11.98847408,82.8,82.768,3.76344765]
[1773039867409,42.26746853,82.806,82.77,3.76344765]
[1773039867616,11.98847408,82.8,82.77,3.76344765]
[1773039869526,11.98847408,82.79,82.77,3.76344765]
[1773039870032,12.07744054,82.799,82.772,3.76344765]
[1773039870532,11.98847408,82.8,82.772,3.76344765]
[1773039870720,11.98847408,82.81,82.772,3.76344765]
[1773039871126,11.98847408,82.8,82.772,3.76344765]
[1773039872435,11.98847408,82.8,82.774,3.76344765]
[1773039875129,11.98847408,82.8,82.776,3.66597134]
[1773039876411,3.70879859,82.826,82.791,3.66597134]
[1773039876729,12.07364926,82.825,82.791,3.66597134]
[1773039876927,11.98847408,82.82,82.791,3.66597134]
[1773039877129,24.06145723,82.83,82.793,3.66597134]
[1773039877634,24.07675033,82.83,82.793,3.66597134]
[1773039878337,12.00376718,82.83,82.801,3.66597134]
[1773039878524,12.00376718,82.84,82.801,3.66597134]
[1773039879936,12.00376718,82.83,82.801,3.66597134]
[1773039880135,12.00376718,82.83,82.794,42.27359469]
[1773039880136,3.70879859,82.829,82.794,15.74414125]
[1773039880325,12.00376718,82.82,82.794,3.66597134]
[1773039880525,12.07452396,82.819,82.794,3.66597134]
[1773039880924,15.78275783,82.823,82.796,3.66597134]
[1773039881632,4.48148158,82.82,82.796,3.66597134]
[1773039882832,12.07395924,82.823,82.798,3.66597134]
[1773039883021,12.0732634,82.828,82.798,3.66597134]
[1773039883222,3.70879859,82.829,82.798,3.66597134]
[1773039883438,4.48148158,82.82,82.798,3.66597134]
[1773039883944,3.70879859,82.819,82.79,3.66597134]
[1773039884237,4.48148158,82.81,82.79,3.66597134]
[1773039884432,4.48148158,82.82,82.792,3.66597134]
[1773039884735,4.48148158,82.82,82.791,12.07860757]
[1773039884736,12.07306619,82.829,82.793,12.07831579]
[1773039885035,12.07306619,82.829,82.794,3.66597134]
[1773039885538,12.07306619,82.829,82.801,3.66597134]
[1773039888041,3.70879859,82.819,82.783,30.19910322]
[1773039888222,3.70879859,82.819,82.784,3.66597134]
[1773039888619,3.70879859,82.809,82.781,3.66597134]
[1773039889559,4.48148158,82.8,82.778,12.0803976]
[1773039889843,4.48148158,82.8,82.778,15.74636894]
[1773039890225,4.48148158,82.8,82.779,3.66597134]
[1773039890521,8.19028017,82.8,82.772,3.66597134]
[1773039890738,12.07675247,82.804,82.772,3.66597134]
[1773039891228,4.48148158,82.81,82.772,3.66597134]
[1773039891424,4.48148158,82.81,82.771,42.28534147]
[1773039891425,12.07452396,82.819,82.781,3.66597134]
[1773039891624,12.07452396,82.819,82.78,4.48148158]
[1773039891625,12.07379887,82.824,82.791,3.66597134]
[1773039892045,4.48148158,82.82,82.791,3.66597134]
[1773039892241,4.48148158,82.84,82.774,3.66597134]
[1773039892242,3.70879859,82.809,82.774,3.66597134]
[1773039892541,4.48148158,82.79,82.765,3.66597134]
[1773039892749,8.19028017,82.79,82.765,3.66597134]
[1773039892949,8.19028017,82.79,82.761,30.2072878]
[1773039892950,4.48148158,82.8,82.767,3.66597134]
[1773039894048,3.70879859,82.789,82.761,12.0828835]
[1773039894244,3.70879859,82.789,82.762,3.66597134]
[1773039894545,42.27104191,82.799,82.762,3.66597134]
[1773039894546,3.70879859,82.798,82.762,3.66597134]
[1773039895230,4.48148158,82.79,82.762,3.66597134]
[1773039898146,4.48148158,82.79,82.763,12.08269395]
[1773039898351,15.78649925,82.798,82.764,3.66597134]
[1773039898950,1.51898275,82.813,82.781,3.66597134]
[1773039899159,12.0755446,82.812,82.781,3.66597134]
[1773039899641,4.48148158,82.81,82.781,3.66597134]
[1773039900140,12.07612791,82.808,82.781,3.66597134]
[1773039900341,4.48148158,82.82,82.782,3.66597134]
[1773039900860,3.70879859,82.809,82.782,3.66597134]
[1773039901732,3.70879859,82.816,82.782,3.66597134]
[1773039902671,42.26083386,82.819,82.781,12.07993807]
[1773039902672,3.70879859,82.809,82.781,12.07993807]
[1773039902960,4.48148158,82.81,82.782,3.66597134]
[1773039903344,3.58445034,82.809,82.782,3.66597134]
[1773039904441,4.48148158,82.81,82.782,3.66597134]
[1773039904646,12.07525297,82.814,82.784,3.67326975]
[1773039905057,12.07525297,82.814,82.76,4.48148158]
[1773039905058,3.58445034,82.799,82.747,3.67326975]
[1773039905272,4.48148158,82.78,82.752,3.67326975]
[1773039905461,8.06593192,82.78,82.752,3.67326975]
[1773039905650,8.06593192,82.78,82.751,12.0844461]
[1773039905651,3.58445034,82.779,82.751,12.0844461]
[1773039906048,3.58445034,82.779,82.751,15.75771585]
[1773039906455,4.48148158,82.8,82.761,3.67326975]
[1773039906768,4.48148158,82.8,82.723,3.69383402]
[1773039906769,8.06593192,82.79,82.763,3.67326975]
[1773039906945,3.58445034,82.789,82.763,3.67326975]
[1773039907365,4.48148158,82.79,82.763,3.67326975]
[1773039907663,16.55887361,82.8,82.763,3.67326975]
[1773039908865,12.07617587,82.808,82.771,3.67326975]
[1773039909558,12.07598207,82.809,82.771,3.67326975]
[1773039910360,3.61768632,82.825,82.791,3.81598776]
[1773039910544,4.48148158,82.82,82.791,3.81598776]
[1773039910954,3.61768632,82.818,82.791,3.81598776]
[1773039911543,12.00816239,82.81,82.781,3.81598776]
[1773039911762,42.26083386,82.819,82.773,3.81598776]
[1773039911763,12.00816239,82.8,82.773,3.81598776]
[1773039912164,15.62584871,82.8,82.773,3.81598776]
[1773039912363,15.62584871,82.79,82.764,3.81598776]
[1773039912571,15.62584871,82.79,82.752,30.21068673]
[1773039912572,15.62584871,82.79,82.765,15.89838974]
[1773039912759,3.61768632,82.798,82.766,3.81598776]
[1773039913160,12.00816239,82.79,82.767,12.08211001]
[1773039913354,12.07773228,82.797,82.768,3.81598776]
[1773039913873,15.6954186,82.797,82.768,3.81598776]
[1773039914069,3.61768632,82.796,82.768,3.81598776]
[1773039914260,12.07773228,82.797,82.756,3.81598776]
[1773039914261,3.61768632,82.789,82.756,3.81598776]
[1773039915370,3.61768632,82.789,82.758,3.81598776]
[1773039915563,12.07904527,82.788,82.758,3.81598776]
[1773039917370,12.07641958,82.806,82.76,3.81598776]
[1773039917575,24.08254055,82.82,82.781,3.81598776]
[1773039918166,24.08254055,82.82,82.791,3.81598776]
[1773039918790,24.08254055,82.82,82.793,3.81598776]
[1773039918954,12.00816239,82.81,82.793,3.81598776]
[1773039919373,3.61768632,82.819,82.793,3.81598776]
[1773039920076,3.61768632,82.819,82.791,3.81598776]
[1773039921360,12.07466975,82.818,82.791,3.81598776]
[1773039921559,15.69235607,82.818,82.791,3.81598776]
[1773039921761,12.00816239,82.81,82.791,3.81598776]
[1773039922159,12.00816239,82.81,82.785,15.89539235]
[1773039922356,12.00816239,82.81,82.786,3.81598776]
[1773039922675,15.62584871,82.81,82.786,3.81598776]
[1773039923576,12.07598207,82.809,82.786,3.81598776]
[1773039923873,12.07335772,82.827,82.791,3.81598776]
[1773039924280,15.69104404,82.827,82.791,3.81598776]
[1773039924479,12.00816239,82.82,82.791,3.81598776]
[1773039925065,12.07452396,82.819,82.793,3.81598776]
[1773039927078,3.61768632,82.809,82.771,3.81598776]
[1773039927391,12.00816239,82.8,82.771,3.81598776]
[1773039927890,3.61768632,82.806,82.771,3.81598776]
[1773039929179,24.08408721,82.81,82.773,3.81598776]
[1773039929565,3.61768632,82.809,82.773,3.81598776]
[1773039929766,12.00816239,82.8,82.773,3.81598776]
[1773039929963,3.61768632,82.799,82.767,12.08208837]
[1773039930168,12.00816239,82.79,82.767,12.08208837]
[1773039930383,12.00816239,82.79,82.766,3.81598776]
[1773039931172,15.69559472,82.796,82.768,3.81598776]
[1773039931568,12.0779084,82.796,82.768,3.81598776]
[1773039931773,12.07598207,82.809,82.781,3.81598776]
[1773039932173,12.00816239,82.81,82.781,3.81598776]
[1773039932374,24.08400657,82.81,82.781,3.81598776]
[1773039933092,3.89090109,82.813,82.783,3.67059999]
[1773039933274,12.07515996,82.815,82.783,3.67059999]
[1773039933475,3.89090109,82.809,82.777,12.08051831]
[1773039933799,4.48346644,82.8,82.777,12.08051831]
[1773039934379,3.89090109,82.799,82.775,3.67059999]
[1773039934794,3.89090109,82.799,82.77,4.48346644]
[1773039935093,3.89090109,82.799,82.771,3.67059999]
[1773039935294,4.48346644,82.79,82.766,3.67059999]
[1773039935988,3.89090109,82.789,82.766,3.67059999]
[1773039936396,3.89090109,82.789,82.76,15.75366726]
[1773039936776,3.89090109,82.789,82.76,3.67059999]
[1773039937202,4.48346644,82.79,82.762,3.67059999]
[1773039937689,15.96980046,82.789,82.763,15.75329394]
[1773039937894,15.96980046,82.789,82.764,3.67059999]
[1773039940694,15.97009226,82.787,82.764,3.67059999]
[1773039941195,15.97009226,82.787,82.766,3.67059999]
[1773039941596,12.07919117,82.787,82.766,3.67059999]
[1773039943505,15.97009226,82.787,82.766,3.67059999]
[1773039943887,3.89090109,82.779,82.745,12.08532237]
[1773039944092,3.89090109,82.779,82.746,3.67059999]
[1773039944901,4.48527101,82.8,82.72,11.24234527]
[1773039944902,3.89090109,82.759,82.72,11.24234527]
[1773039945108,4.48527101,82.74,82.721,15.7594287]
[1773039945401,3.89090109,82.739,82.72,7.57174528]
[1773039946091,4.48527101,82.73,82.72,7.57174528]
[1773039946595,3.89090109,82.729,82.7,0.1]
[1773039946798,4.48527101,82.72,82.7,0.1]
[1773039947397,8.3761721,82.72,82.7,0.1]
[1773039947705,12.03629498,82.72,82.681,3.67059999]
[1773039948002,12.03629498,82.7,82.672,3.67059999]
[1773039948307,3.89090109,82.709,82.672,3.67059999]
[1773039949109,3.89090109,82.707,82.674,3.67059999]
[1773039949406,12.03629498,82.7,82.674,3.67059999]
[1773039951110,3.89090109,82.707,82.676,3.67059999]
[1773039951312,12.03629498,82.71,82.681,3.67059999]
[1773039951607,15.98148373,82.709,82.681,3.67059999]
[1773039951905,3.89090109,82.709,82.681,3.67059999]
[1773039952413,3.89090109,82.708,82.681,3.67059999]
[1773039952801,12.03629498,82.71,82.681,3.67059999]
[1773039953198,3.89090109,82.709,82.683,3.67059999]
[1773039954711,3.89090109,82.709,82.684,12.0942383]
[1773039955612,15.92719607,82.72,82.691,3.67059999]
[1773039955794,12.03629498,82.72,82.691,3.67059999]
[1773039956919,3.89090109,82.728,82.693,3.67059999]
[1773039957216,12.03629498,82.72,82.693,3.67059999]
[1773039957806,12.08673785,82.736,82.701,3.67059999]
[1773039958012,12.03629498,82.73,82.701,3.67059999]
[1773039958395,15.92719607,82.73,82.701,3.67059999]
[1773039958599,12.03629498,82.71,82.687,3.67059999]
[1773039958902,12.03629498,82.71,82.688,12.09365325]
[1773039959406,3.89090109,82.713,82.688,12.09365325]
[1773039959714,3.89090109,82.713,82.689,3.67059999]
[1773039959911,3.89090109,82.713,82.68,30.2370524]
[1773039959912,3.89090109,82.699,82.671,3.67059999]
[1773039960115,12.03629498,82.71,82.681,3.82388824]
[1773039960318,12.03629498,82.73,82.691,3.82388824]
[1773039960618,12.03629498,82.73,82.67,30.24066326]
[1773039960619,12.03629498,82.71,82.68,12.03629498]
[1773039960824,12.03629498,82.7,82.681,3.82388824]
[1773039961524,12.03629498,82.69,82.673,3.82388824]
[1773039961721,12.03629498,82.7,82.673,3.82388824]
[1773039961923,12.03629498,82.72,82.681,3.82388824]
[1773039962216,12.03629498,82.72,82.691,3.82388824]
[1773039962402,12.03629498,82.71,82.691,3.82388824]
[1773039962595,12.03629498,82.71,82.684,3.82388824]
[1773039962830,12.08649092,82.737,82.672,3.82388824]
[1773039962831,12.09204464,82.699,82.672,3.82388824]
[1773039963007,12.09204464,82.699,82.673,12.09584749]
[1773039963203,12.09204464,82.699,82.674,3.91213162]
[1773039964816,12.03629498,82.7,82.674,3.91213162]
[1773039965598,0.20801744,82.709,82.675,12.09555488]
[1773039965806,12.03629498,82.7,82.675,12.09555488]
[1773039966299,11.91538498,82.7,82.675,12.09555488]
[1773039966502,12.03629498,82.71,82.681,3.91213162]
[1773039966701,12.08868257,82.722,82.681,3.91213162]
[1773039966903,12.03629498,82.72,82.691,3.91213162]
[1773039967413,42.52295837,82.727,82.691,3.91213162]
[1773039967608,4.4925928,82.72,82.691,3.91213162]
[1773039968018,4.70762229,82.72,82.691,3.91213162]
[1773039968218,0.21502949,82.719,82.69,12.09322539]
[1773039968601,0.21502949,82.719,82.691,3.91213162]
[1773039968916,4.4925928,82.72,82.692,3.91213162]
[1773039969603,4.4925928,82.72,82.69,4.4925928]
[1773039969604,0.22542091,82.699,82.665,12.09699687]
[1773039969808,4.4925928,82.69,82.666,3.82388824]
[1773039970022,4.4925928,82.7,82.671,3.82388824]
[1773039970822,4.4925928,82.69,82.661,3.82388824]
[1773039971004,0.22869377,82.699,82.661,3.82388824]
[1773039971206,4.4925928,82.69,82.661,3.82388824]
[1773039971612,16.58609434,82.69,82.661,3.82388824]
[1773039972526,0.23038726,82.698,82.663,3.82388824]
[1773039972726,12.09204464,82.699,82.663,3.82388824]
[1773039973511,4.4925928,82.7,82.671,3.82388824]
[1773039973718,4.4925928,82.69,82.671,3.82388824]
[1773039973934,12.09204464,82.699,82.671,3.82388824]
[1773039974200,12.09204464,82.699,82.672,3.82388824]
[1773039974623,0.23205234,82.698,82.672,3.82388824]
[1773039974825,12.09204464,82.699,82.672,3.82388824]
[1773039975025,4.4925928,82.7,82.673,3.82388824]
[1773039975210,0.23287968,82.699,82.66,4.4925928]
[1773039975420,0.23287968,82.699,82.666,3.82388824]
[1773039975727,12.09350699,82.689,82.666,3.82388824]
[1773039976528,4.4925928,82.69,82.667,3.82388824]
[1773039976831,4.4925928,82.69,82.666,12.09674591]
[1773039976832,4.4925928,82.71,82.671,3.82388824]
[1773039977010,4.4925928,82.71,82.666,12.09674591]
[1773039977011,4.4925928,82.72,82.681,3.82388824]
[1773039977209,4.4925928,82.74,82.701,3.82388824]
[1773039977615,0.23449101,82.737,82.703,3.82388824]
[1773039977910,12.08634484,82.738,82.703,3.82388824]
[1773039978112,12.08634484,82.738,82.711,3.82388824]
[1773039978926,4.4925928,82.74,82.711,3.82388824]
[1773039979133,4.4925928,82.76,82.721,3.82388824]
[1773039979524,12.08240198,82.765,82.731,3.82388824]
[1773039979822,4.4925928,82.76,82.733,3.82388824]
[1773039980731,4.4925928,82.76,82.72,34.71492668]
[1773039980732,0.23677109,82.759,82.725,3.82388824]
[1773039980936,4.72936389,82.74,82.702,3.82388824]
[1773039981136,4.4925928,82.76,82.691,3.82388824]
[1773039981137,4.4925928,82.72,82.691,3.82388824]
[1773039981423,3.69383402,82.754,82.691,3.82388824]
[1773039981424,4.4925928,82.71,82.691,3.82388824]
[1773039981628,12.09058264,82.709,82.691,3.82388824]
[1773039982017,12.03649853,82.71,82.691,3.82388824]
[1773039982220,24.12695991,82.71,82.691,3.82388824]
[1773039982420,24.12695991,82.71,82.68,3.82388824]
[1773039982817,24.12695991,82.71,82.681,3.82388824]
[1773039983019,12.03649853,82.71,82.681,3.82388824]
[1773039983824,12.03649853,82.73,82.701,3.82388824]
[1773039984227,24.12401212,82.73,82.701,3.82388824]
[1773039984807,12.03649853,82.74,82.711,3.82388824]
[1773039985015,12.08619876,82.739,82.711,3.82388824]
[1773039985327,12.03649853,82.73,82.701,3.82388824]
[1773039985714,0.24045031,82.738,82.701,3.82388824]
[1773039985916,12.08649092,82.737,82.703,3.82388824]
[1773039986210,12.03649853,82.73,82.703,3.82388824]
[1773039987135,12.03649853,82.72,82.691,3.82388824]
[1773039987514,12.03649853,82.72,82.68,12.03649853]
[1773039987515,12.03649853,82.71,82.68,3.82388824]
[1773039987918,12.03649853,82.7,82.68,3.82388824]
[1773039988124,12.03649853,82.7,82.671,3.82388824]
[1773039988519,12.03649853,82.7,82.673,3.82388824]
[1773039988835,12.09058264,82.709,82.673,3.82388824]
[1773039989221,12.33309206,82.709,82.673,3.82388824]
[1773039989421,42.55954867,82.709,82.673,3.82388824]
[1773039990024,12.03649853,82.7,82.672,3.82388824]
[1773039990228,12.03649853,82.69,82.672,3.82388824]
[1773039990417,12.03649853,82.7,82.672,3.82388824]
[1773039990618,12.28042419,82.7,82.672,3.82388824]
[1773039992042,12.03649853,82.7,82.672,3.82388824]
[1773039992240,12.03649853,82.7,82.656,30.24582317]
[1773039992241,12.09204464,82.699,82.674,3.82388824]
[1773039993933,30.22300406,82.719,82.681,3.82388824]
[1773039994443,12.089121,82.719,82.683,3.82388824]
[1773039994850,12.03649853,82.72,82.691,3.82388824]
[1773039995355,12.0876597,82.729,82.691,3.82388824]
[1773039996523,12.0876597,82.729,82.693,3.82388824]
[1773039996938,0.24876858,82.728,82.693,3.82388824]
[1773039998433,12.03649853,82.72,82.693,3.82388824]
[1773039998622,0.24995816,82.719,82.688,12.09354541]
[1773039999041,12.03649853,82.72,82.691,3.82388824]
[1773039999346,12.03649853,82.74,82.701,3.82388824]
[1773039999528,12.03649853,82.73,82.701,3.82388824]
[1773040000642,12.0876597,82.729,82.703,3.82388824]
[1773040000834,12.08608001,82.74,82.711,3.82388824]
[1773040001038,12.03649853,82.73,82.711,3.82388824]
[1773040001547,54.33771027,82.74,82.711,3.82388824]
[1773040001850,24.11615877,82.74,82.711,3.82388824]
[1773040002839,12.08608001,82.74,82.713,3.82388824]
[1773040003044,12.08473818,82.749,82.713,3.82388824]
[1773040003232,12.03007876,82.74,82.713,3.82388824]
[1773040003549,0.25282966,82.739,82.713,3.82388824]
[1773040004227,12.03007876,82.73,82.713,3.82388824]
[1773040004525,12.03007876,82.74,82.713,3.82388824]
[1773040004726,12.08473818,82.749,82.713,3.82388824]
[1773040004950,12.08473818,82.749,82.715,3.82388824]
[1773040005452,0.25388775,82.748,82.715,3.82388824]
[1773040005629,12.03007876,82.73,82.702,3.82388824]
[1773040006051,0.25388775,82.746,82.702,3.82388824]
[1773040006230,12.03007876,82.73,82.702,3.82388824]
[1773040006432,12.03007876,82.74,82.702,3.82388824]
[1773040006844,12.03007876,82.74,82.711,3.82388824]
[1773040007338,12.08473818,82.749,82.713,3.82388824]
[1773040007737,3.69383402,82.768,82.712,42.31550439]
[1773040007738,12.03007876,82.76,82.731,3.82388824]
[1773040008043,12.03007876,82.75,82.713,3.82388824]
[1773040008232,12.03007876,82.74,82.713,3.82388824]
[1773040008433,0.2555912,82.739,82.702,3.82388824]
[1773040008832,12.03007876,82.74,82.702,3.82388824]
[1773040009853,12.03007876,82.74,82.704,3.82388824]
[1773040011040,12.03007876,82.74,82.711,3.82388824]
[1773040011546,12.08474748,82.749,82.711,3.82388824]
[1773040012153,12.03007876,82.75,82.713,3.82388824]
[1773040012451,11.9288925,82.8,82.731,3.82388824]
[1773040012665,0.25774366,82.829,82.762,3.82388824]
[1773040012951,54.62,82.83,82.74,12.03007876]
[1773040012952,0.25774366,82.809,82.771,3.82388824]
[1773040013547,12.07612791,82.808,82.772,12.08138017]
[1773040013762,12.07612791,82.808,82.773,3.82388824]
[1773040014549,12.07612791,82.808,82.781,3.82388824]
[1773040015249,12.07612791,82.808,82.78,12.03007876]
[1773040015250,42.26083386,82.819,82.791,3.82388824]
[1773040016536,12.07452396,82.819,82.791,3.82388824]
[1773040016736,12.07452396,82.819,82.742,3.69383402]
[1773040016737,12.07306619,82.829,82.811,3.82388824]
[1773040016944,12.07306619,82.829,82.803,3.82388824]
[1773040017663,0.2,82.83,82.804,3.82388824]
[1773040017863,0.2,82.83,82.811,3.82388824]
[1773040019655,12.03007876,82.84,82.813,3.72545898]
[1773040020268,12.03007876,82.85,82.82,12.03007876]
[1773040020562,12.06956899,82.853,82.82,12.03007876]
[1773040020563,12.06956899,82.853,82.821,3.72545898]
[1773040021153,12.03007876,82.85,82.821,3.72545898]
[1773040021765,12.03007876,82.84,82.811,3.72545898]
[1773040021961,12.03007876,82.85,82.811,3.72545898]
[1773040022166,12.03007876,82.85,82.821,3.72545898]
[1773040023353,12.06956899,82.853,82.831,3.90425113]
[1773040023548,12.06887286,82.858,82.831,3.90425113]
[1773040023748,12.06723865,82.869,82.833,3.90425113]
[1773040024641,12.06723865,82.869,82.84,12.03007876]
[1773040024844,0.2,82.91,82.861,3.90425113]
[1773040025061,12.26139631,82.91,82.88,12.03007876]
[1773040025371,24.29147507,82.91,82.881,3.90425113]
[1773040025744,54.44465321,82.91,82.881,3.90425113]
[1773040026042,0.2,82.91,82.891,3.90425113]
[1773040026256,12.06141673,82.909,82.881,3.90425113]
[1773040027249,0.2,82.91,82.891,3.90425113]
[1773040027446,12.49546457,82.94,82.901,3.90425113]
[1773040027652,0.46538581,82.94,82.901,3.90425113]
[1773040027859,12.05705397,82.939,82.91,12.03007876]
[1773040028056,0.46538581,82.938,82.903,3.90425113]
[1773040028641,0.46538581,82.938,82.91,12.03007876]
[1773040028842,12.05705397,82.939,82.911,3.90425113]
[1773040029052,0.46590111,82.938,82.901,3.90425113]
[1773040029249,12.49683851,82.93,82.901,3.90425113]
[1773040029453,42.19968891,82.939,82.852,3.88201285]
[1773040029454,0.46675975,82.909,82.852,3.88201285]
[1773040029659,12.03007876,82.89,82.853,3.88201285]
[1773040030146,54.24962037,82.9,82.861,3.88201285]
[1773040030345,54.24962037,82.9,82.871,3.88201285]
[1773040030548,24.09280493,82.9,82.871,3.88201285]
[1773040031246,12.03007876,82.89,82.861,3.88201285]
[1773040031864,3.75093211,82.888,82.85,12.03007876]
[1773040032054,12.03007876,82.87,82.83,12.03007876]
[1773040032367,3.75093211,82.869,82.831,12.07265435]